bitfinex/quotes_SOLUSD_20250902
["timestamp","ask_amount","ask_price","bid_price","bid_amount"]
[1756842701252,7.92148398,206.02,206.0,0.03]
[1756842701455,13.59559401,206.02,206.0,0.03]
[1756842701669,7.92148398,206.04,206.01,0.68]
[1756842701845,7.92148398,206.04,206.02,0.68]
[1756842702033,60.15707799,206.04,206.03,0.68]
[1756842702240,0.06,206.06,206.03,0.68]
[1756842702440,52.23559401,206.05,206.03,0.68]
[1756842702745,60.15707799,206.05,206.03,0.68]
[1756842703060,7.92148398,206.04,206.0,0.03]
[1756842703236,7.92148398,206.02,206.0,0.03]
[1756842704845,7.92148398,206.01,206.0,0.03]
[1756842705043,13.59559401,206.02,206.0,0.03]
[1756842705044,21.51707799,206.02,206.0,0.03]
[1756842705548,7.92148398,206.01,206.0,0.03]
[1756842705966,7.92148398,206.01,206.0,0.71]
[1756842706450,21.51707799,206.02,206.0,0.71]
[1756842706965,21.51707799,206.02,206.01,4.85413329]
[1756842707934,0.34432314,206.06,206.01,17.66946652]
[1756842708139,13.59559401,206.05,206.02,0.68]
[1756842708363,13.59559401,206.05,206.03,0.68]
[1756842708557,38.58,206.05,206.03,0.68]
[1756842708867,38.64,206.06,206.04,0.68]
[1756842709035,38.64,206.06,206.05,4.85319097]
[1756842709361,46.56148398,206.06,206.05,4.85319097]
[1756842709571,50.60222871,206.06,206.05,4.85319097]
[1756842710447,13.59559401,206.05,206.02,4.85389767]
[1756842710654,25.55782272,206.03,206.02,4.85389767]
[1756842711459,25.55782272,206.03,206.02,0.68]
[1756842711460,38.6,206.03,206.02,0.68]
[1756842711645,0.34432314,206.06,206.02,0.68]
[1756842711850,13.59559401,206.04,206.02,0.68]
[1756842712044,11.96222871,206.05,206.02,0.68]
[1756842712254,12.02222871,206.06,206.02,0.68]
[1756842712455,0.06,206.06,206.03,0.68]
[1756842712640,0.06,206.06,206.04,11.96222871]
[1756842712849,38.6,206.09,206.05,12.64222871]
[1756842713164,38.6,206.09,206.0,26.03]
[1756842713165,0.06,206.11,206.06,12.64222871]
[1756842713464,38.68,206.11,206.08,16.81471318]
[1756842713773,38.68,206.11,206.09,0.68]
[1756842714458,26.22782272,206.1,206.08,4.85248447]
[1756842714655,26.22782272,206.1,205.99,24.27302296]
[1756842714656,11.96222871,206.09,206.05,4.85319097]
[1756842714855,25.55782272,206.06,206.05,4.85319097]
[1756842715071,64.17782272,206.06,206.05,4.85319097]
[1756842715450,13.59559401,206.05,206.01,16.98929741]
[1756842715648,25.55782272,206.02,206.0,4.88431183]
[1756842715854,50.58222871,206.01,206.0,4.88431183]
[1756842716859,64.17782272,206.01,206.0,4.88431183]
[1756842717362,13.59559401,206.06,206.0,5.56431183]
[1756842717547,11.96222871,206.03,206.0,17.70023416]
[1756842717745,0.67,206.07,206.01,0.68]
[1756842717746,38.62,206.02,206.01,0.68]
[1756842717947,50.58222871,206.03,206.0,17.02023416]
[1756842718148,11.96222871,206.02,206.0,17.02023416]
[1756842718387,11.96222871,206.02,206.0,4.88431183]
[1756842718559,11.96222871,206.01,206.0,4.88431183]
[1756842718761,50.56222871,206.01,206.0,4.88431183]
[1756842719768,38.6,206.01,206.0,0.03]
[1756842720166,50.56222871,206.01,206.0,0.03]
[1756842720376,65.11214586,206.01,206.0,0.03]
[1756842721066,65.25430743,206.01,206.0,0.03]
[1756842721774,26.65430743,206.01,206.0,0.03]
[1756842721981,65.23430743,206.01,206.0,0.03]
[1756842722472,64.42214586,206.01,206.0,0.03]
[1756842722651,52.17559401,206.01,206.0,0.03]
[1756842723461,11.96222871,206.02,206.0,0.03]
[1756842723667,38.58,206.01,206.0,0.03]
[1756842725261,52.17559401,206.01,206.0,0.03]
[1756842725473,64.80782272,206.01,206.0,0.03]
[1756842725665,64.13782272,206.01,206.0,0.03]
[1756842726294,64.80782272,206.01,206.0,0.03]
[1756842726469,65.23430743,206.01,206.0,0.03]
[1756842727161,67.18054268,206.01,206.0,0.03]
[1756842727379,72.03467597,206.01,206.0,0.03]
[1756842727756,67.18054268,206.01,206.0,0.03]
[1756842728254,52.43991715,206.01,206.0,0.03]
[1756842728474,64.40214586,206.01,206.0,0.03]
[1756842729781,65.07214586,206.01,206.0,0.03]
[1756842730163,65.21430743,206.01,206.0,0.03]
[1756842730370,70.06844072,206.01,206.0,0.03]
[1756842730892,31.50844072,206.01,206.0,0.03]
[1756842731176,70.06844072,206.01,206.0,0.03]
[1756842734978,31.50844072,206.01,206.0,0.03]
[1756842735381,25.98430743,206.01,206.0,0.03]
[1756842735589,64.54430743,206.01,206.0,0.03]
[1756842735893,65.25430743,206.01,206.0,0.03]
[1756842736969,15.54192396,206.01,206.0,0.74]
[1756842737186,38.58,206.01,206.0,5.59436893]
[1756842739998,11.96222871,206.04,206.0,5.59436893]
[1756842740174,0.28432314,206.04,206.01,0.71]
[1756842740383,25.55782272,206.02,206.0,0.03]
[1756842740593,50.52222871,206.01,206.0,0.03]
[1756842741096,64.40214586,206.01,206.0,0.03]
[1756842741298,70.10872834,206.01,206.0,0.03]
[1756842741487,69.39872834,206.01,206.0,0.03]
[1756842743211,70.10872834,206.01,206.0,0.03]
[1756842743401,74.96286163,206.01,206.0,0.03]
[1756842744982,36.40286163,206.01,206.0,0.03]
[1756842745179,31.54872834,206.01,206.0,0.03]
[1756842745485,70.10872834,206.01,206.0,0.03]
[1756842745705,31.54872834,206.01,206.0,0.03]
[1756842746005,74.96286163,206.01,206.0,0.03]
[1756842746199,31.54872834,206.01,206.0,0.03]
[1756842746398,74.96286163,206.01,206.0,0.03]
[1756842749399,36.40286163,206.01,206.0,0.03]
[1756842749598,30.83872834,206.01,206.0,0.03]
[1756842749907,30.41224363,206.01,206.0,0.03]
[1756842750102,64.13782272,206.01,206.0,0.03]
[1756842750302,66.51035331,206.01,206.0,0.03]
[1756842750610,72.0744866,206.01,206.0,0.03]
[1756842750806,39.59559401,205.98,205.97,0.03]
[1756842751115,90.56430743,205.98,205.97,0.03]
[1756842751310,91.27430743,205.98,205.97,0.03]
[1756842751613,96.1291477,205.98,205.97,0.03]
[1756842752115,90.56430743,205.98,205.97,0.03]
[1756842752312,95.4191477,205.98,205.97,0.03]
[1756842753210,51.98430743,205.98,205.97,0.03]
[1756842753515,90.56430743,205.98,205.97,0.03]
[1756842753711,39.59559401,205.98,205.97,0.74]
[1756842754017,90.56430743,205.98,205.97,0.03]
[1756842754808,13.59559401,205.98,205.97,0.74]
[1756842755010,64.13782272,205.98,205.97,0.74]
[1756842755516,64.13782272,205.98,205.97,0.03]
[1756842755517,64.56430743,205.98,205.97,0.03]
[1756842756507,64.56430743,205.98,205.97,0.74]
[1756842757013,64.56430743,205.98,205.97,0.03]
[1756842757316,64.56430743,205.98,205.97,0.74]
[1756842757512,64.56430743,205.98,205.97,0.03]
[1756842757719,70.1291477,205.98,205.97,0.03]
[1756842757920,69.4191477,205.98,205.97,0.03]
[1756842758293,64.56430743,205.98,205.97,0.03]
[1756842758894,69.4191477,205.98,205.97,0.03]
[1756842759396,70.1291477,205.98,205.97,0.03]
[1756842759597,64.56430743,205.98,205.97,0.03]
[1756842759816,92.51082681,205.98,205.97,0.03]
[1756842760023,72.07566708,205.98,205.97,0.03]
[1756842760627,92.51082681,205.98,205.97,0.03]
[1756842761695,97.36566708,205.98,205.97,0.03]
[1756842761922,98.05566708,205.98,205.97,0.03]
[1756842763121,92.0843421,205.98,205.97,0.69]
[1756842763434,92.51082681,205.98,205.97,0.03]
[1756842764722,98.05566708,205.98,205.97,0.03]
[1756842765429,72.05566708,205.98,205.97,0.03]
[1756842766829,33.47566708,205.98,205.97,0.03]
[1756842767037,72.05566708,205.98,205.97,0.03]
[1756842770638,72.05566708,205.98,205.97,1e-08]
[1756842770803,14.02207872,205.97,205.96,0.03]
[1756842771137,25.98430743,205.97,205.96,0.03]
[1756842771437,28.62139531,205.97,205.95,0.03]
[1756842771617,60.54424428,205.96,205.95,0.03]
[1756842771937,66.08955599,205.96,205.95,0.03]
[1756842772102,28.76664388,205.96,205.95,0.03]
[1756842772303,68.03664388,205.96,205.95,0.03]
[1756842772822,39.59559401,205.93,205.92,0.1]
[1756842773024,94.48640984,205.93,205.85,0.66]
[1756842773244,21.53775957,205.86,205.84,0.66]
[1756842773418,60.40208271,205.85,205.84,0.66]
[1756842774017,65.29112582,205.85,205.84,0.66]
[1756842775246,0.28432314,205.83,205.8,0.03]
[1756842775460,13.59559401,205.81,205.8,0.03]
[1756842775630,16.77424153,205.81,205.8,0.03]
[1756842775813,16.77424153,205.81,205.8,0.69]
[1756842776018,17.20072624,205.81,205.8,0.69]
[1756842776442,17.20072624,205.81,205.8,0.03]
[1756842777015,17.20072624,205.81,205.8,0.69]
[1756842777232,17.20072624,205.81,205.8,0.03]
[1756842778031,52.60207872,205.81,205.8,0.69]
[1756842778921,14.02207872,205.81,205.8,0.69]
[1756842779121,55.78072624,205.81,205.8,0.69]
[1756842780048,13.87991715,205.81,205.8,0.69]
[1756842780232,52.45991715,205.81,205.8,0.69]
[1756842780839,52.17559401,205.81,205.8,5.54908649]
[1756842781051,52.17559401,205.81,205.8,8.72773401]
[1756842781420,52.17559401,205.81,205.8,5.54908649]
[1756842781954,13.59559401,205.81,205.8,5.54908649]
[1756842782134,52.17559401,205.81,205.8,5.54908649]
[1756842782656,52.17559401,205.81,205.8,8.72773401]
[1756842783030,52.17559401,205.81,205.8,5.54908649]
[1756842783630,52.17559401,205.81,205.8,0.69]
[1756842785455,52.17559401,205.81,205.8,5.54908649]
[1756842785836,13.59559401,205.81,205.8,8.72773401]
[1756842786038,38.58,205.81,205.8,8.72773401]
[1756842786365,38.58,205.81,205.8,0.69]
[1756842786659,38.58,205.81,205.8,5.54908649]
[1756842787036,38.58,205.81,205.8,8.72773401]
[1756842788858,38.58,205.81,205.8,5.54908649]
[1756842789039,52.17559401,205.81,205.8,0.03]
[1756842789953,52.17559401,205.81,205.8,0.69]
[1756842790332,52.17559401,205.81,205.8,0.03]
[1756842792956,13.59559401,205.81,205.8,0.03]
[1756842793364,52.45991715,205.81,205.8,0.03]
[1756842793663,39.59559401,205.78,205.77,0.03]
[1756842793967,43.20072624,205.78,205.77,0.03]
[1756842794168,81.78072624,205.78,205.77,0.03]
[1756842794370,84.43904703,205.78,205.77,0.03]
[1756842795567,89.29860578,205.78,205.77,0.03]
[1756842796264,80.55039951,205.78,205.77,0.03]
[1756842796467,54.1239148,205.78,205.77,0.75]
[1756842796657,52.17559401,205.78,205.77,0.75]
[1756842796853,1.94803613,205.79,205.77,3.92864752]
[1756842797054,38.62,205.8,205.78,3.89864752]
[1756842797267,38.62,205.79,205.77,0.03]
[1756842797471,38.62,205.79,205.78,3.17864752]
[1756842797863,38.62,205.79,205.78,8.75820627]
[1756842798061,38.62,205.79,205.78,5.57955875]
[1756842798258,38.62,205.79,205.78,8.75820627]
[1756842798656,18.5556078,205.83,205.78,8.75820627]
[1756842798861,13.59559401,205.81,205.79,0.72]
[1756842799060,38.6,205.8,205.79,0.72]
[1756842799262,38.6,205.8,205.78,8.03820627]
[1756842799874,38.6,205.8,205.79,0.72]
[1756842800077,38.6,205.8,205.77,4.88969838]
[1756842800382,38.6,205.8,205.78,3.89864752]
[1756842800581,38.6,205.8,205.79,0.72]
[1756842801861,38.6,205.8,205.79,8.75797013]
[1756842802178,38.6,205.8,205.79,5.57932261]
[1756842802358,38.6,205.8,205.79,4.85932261]
[1756842803479,13.59559401,205.79,205.78,4.85951189]
[1756842804282,13.59559401,205.79,205.77,4.88977266]
[1756842804478,52.17559401,205.78,205.77,4.88977266]
[1756842804686,55.35424153,205.78,205.77,0.03]
[1756842804884,56.49072624,205.78,205.77,0.03]
[1756842805765,61.35028499,205.78,205.77,0.03]
[1756842806906,14.02207872,205.77,205.76,0.1]
[1756842807195,82.53072624,205.77,205.76,0.1]
[1756842807568,87.30661356,205.77,205.76,0.1]
[1756842807762,92.16640847,205.77,205.76,0.1]
[1756842807978,66.16640847,205.77,205.76,0.1]
[1756842808162,66.16640847,205.77,205.72,0.03]
[1756842808376,14.02207872,205.73,205.72,0.03]
[1756842808594,60.61661356,205.73,205.72,0.03]
[1756842808886,61.32661356,205.73,205.72,0.03]
[1756842809371,63.27569384,205.73,205.72,0.03]
[1756842809884,68.13643364,205.73,205.72,0.03]
[1756842811172,21.97661356,205.71,205.64,0.03]
[1756842811373,39.59559401,205.65,205.64,0.03]
[1756842811681,86.67661356,205.65,205.64,0.03]
[1756842812182,49.92616881,205.65,205.64,0.03]
[1756842812387,93.48879949,205.65,205.64,0.03]
[1756842813273,94.19879949,205.65,205.64,0.03]
[1756842814682,41.97163397,205.65,205.64,0.03]
[1756842814874,88.60616881,205.65,205.64,0.03]
[1756842815071,94.17879949,205.65,205.64,0.03]
[1756842815595,94.23879949,205.65,205.64,0.03]
[1756842816269,49.4996841,205.65,205.64,0.03]
[1756842816474,88.2396841,205.65,205.64,0.03]
[1756842816675,88.66616881,205.65,205.64,0.03]
[1756842817472,89.37616881,205.65,205.64,0.03]
[1756842817700,94.23879949,205.65,205.64,0.03]
[1756842818892,55.49879949,205.65,205.64,0.03]
[1756842819089,94.23879949,205.65,205.64,0.03]
[1756842819681,93.52879949,205.65,205.64,0.03]
[1756842820098,49.92616881,205.65,205.64,0.03]
[1756842820275,88.66616881,205.65,205.64,0.75]
[1756842820680,54.28514926,205.65,205.64,0.75]
[1756842821076,54.71163397,205.65,205.64,0.75]
[1756842821276,54.28514926,205.65,205.64,0.75]
[1756842821700,54.71163397,205.65,205.64,0.75]
[1756842823187,60.24426465,205.65,205.64,0.03]
[1756842823390,94.19879949,205.65,205.64,0.03]
[1756842823594,93.52879949,205.65,205.64,0.03]
[1756842823891,94.19879949,205.65,205.64,0.03]
[1756842824089,54.78879949,205.65,205.64,0.03]
[1756842824293,93.52879949,205.65,205.64,0.03]
[1756842824687,94.19879949,205.65,205.64,0.03]
[1756842824882,68.19879949,205.65,205.64,0.03]
[1756842825309,60.24426465,205.65,205.64,0.03]
[1756842825508,68.19879949,205.65,205.64,0.03]
[1756842825683,14.02207872,205.64,205.63,0.1]
[1756842826016,21.97661356,205.64,205.63,0.1]
[1756842826207,22.64661356,205.64,205.63,1e-08]
[1756842826408,22.64661356,205.64,205.59,0.1]
[1756842826409,14.02207872,205.61,205.59,0.1]
[1756842826591,60.71661356,205.6,205.59,0.1]
[1756842826792,66.25042678,205.6,205.59,0.1]
[1756842826999,65.58042678,205.6,205.59,0.1]
[1756842827197,14.02207872,205.6,205.59,0.1]
[1756842827403,21.97661356,205.6,205.59,0.81]
[1756842827610,52.76207872,205.6,205.59,0.81]
[1756842827787,60.71661356,205.6,205.59,0.81]
[1756842828301,60.71661356,205.6,205.59,0.1]
[1756842828510,65.58042678,205.6,205.59,0.1]
[1756842828817,60.71661356,205.6,205.59,0.1]
[1756842829110,66.25042678,205.6,205.59,0.1]
[1756842829494,66.25042678,205.6,205.5,0.71]
[1756842829495,0.42648471,205.52,205.5,0.71]
[1756842829682,0.42648471,205.52,205.47,8.05520929]
[1756842829683,13.59559401,205.5,205.47,8.05520929]
[1756842829887,38.78,205.49,205.47,8.05520929]
[1756842830106,38.78,205.49,205.44,4.86760124]
[1756842830302,52.37559401,205.49,205.48,0.71]
[1756842831038,38.78,205.5,205.48,0.71]
[1756842831207,38.78,205.49,205.48,5.57665165]
[1756842831909,38.78,205.49,205.48,17.60261944]
[1756842832115,38.78,205.5,205.48,5.57665165]
[1756842832311,13.59559401,205.53,205.49,12.73596779]
[1756842832499,38.78,205.52,205.5,12.73596779]
[1756842832695,38.78,205.51,205.5,12.02596779]
[1756842832904,38.78,205.51,205.5,16.89214783]
[1756842833301,38.78,205.51,205.5,17.60214783]
[1756842833504,38.76,205.51,205.5,17.60214783]
[1756842834320,38.76,205.51,205.5,5.57618004]
[1756842834620,38.76,205.51,205.5,0.71]
[1756842834621,52.35559401,205.51,205.5,0.71]
[1756842834918,13.59559401,205.5,205.46,0.71]
[1756842835225,52.63991715,205.51,205.43,0.1]
[1756842835226,13.59559401,205.48,205.47,0.71]
[1756842835390,14.02207872,205.48,205.44,0.71]
[1756842835590,13.59559401,205.46,205.45,0.71]
[1756842836200,38.8,205.46,205.45,0.71]
[1756842836407,0.28432314,205.51,205.45,12.73596779]
[1756842836712,13.59559401,205.49,205.47,12.02596779]
[1756842837017,14.63022116,205.51,205.48,12.73596779]
[1756842837319,0.14216157,205.55,205.5,12.02596779]
[1756842837521,13.59559401,205.53,205.51,0.71]
[1756842837695,13.59559401,205.53,205.49,12.73596779]
[1756842838025,13.59559401,205.53,205.5,0.71]
[1756842838199,13.59559401,205.53,205.51,0.71]
[1756842838393,52.51559401,205.52,205.51,0.71]
[1756842839100,38.92,205.52,205.51,5.57594326]
[1756842839315,38.92,205.52,205.51,0.71]
[1756842839504,13.59559401,205.51,205.48,0.71]
[1756842839817,13.59559401,205.51,205.47,4.86689054]
[1756842839818,13.59559401,205.49,205.45,0.71]
[1756842840002,38.9,205.48,205.45,0.71]
[1756842840202,13.59559401,205.47,205.43,0.1]
[1756842840401,38.9,205.46,205.44,0.71]
[1756842840607,38.9,205.46,205.45,0.71]
[1756842841124,38.9,205.46,205.45,5.57736432]
[1756842841723,38.9,205.46,205.45,17.60333211]
[1756842842097,38.9,205.46,205.45,5.57736432]
[1756842843625,38.9,205.46,205.43,12.12596779]
[1756842843834,50.92596779,205.46,205.43,0.81]
[1756842844021,13.59559401,205.45,205.43,0.1]
[1756842844223,64.5215618,205.44,205.43,0.1]
[1756842844526,38.9,205.46,205.44,0.71]
[1756842844724,38.92,205.46,205.45,12.73596779]
[1756842845027,12.02596779,205.53,205.46,4.86712742]
[1756842845231,52.53559401,205.52,205.51,12.02596779]
[1756842845410,52.53559401,205.52,205.51,12.73596779]
[1756842845932,38.94,205.52,205.51,12.73596779]
[1756842846128,38.94,205.52,205.51,0.71]
[1756842846330,39.0,205.54,205.51,12.73596779]
[1756842846532,39.0,205.54,205.52,0.71]
[1756842847130,39.0,205.54,205.53,16.89143755]
[1756842847324,39.0,205.54,205.51,12.02596779]
[1756842847716,39.0,205.54,205.46,26.0]
[1756842848030,13.59559401,205.53,205.49,12.73596779]
[1756842848208,13.59559401,205.49,205.43,0.1]
[1756842848409,26.67,205.52,205.43,0.1]
[1756842848410,13.59559401,205.45,205.43,0.1]
[1756842848640,51.41029093,205.44,205.43,0.1]
[1756842848815,52.08029093,205.44,205.43,0.1]
[1756842850109,51.41029093,205.44,205.43,0.1]
[1756842851035,0.14216157,205.47,205.43,0.1]
[1756842851347,13.59559401,205.47,205.44,0.69]
[1756842851551,26.04804651,205.45,205.43,0.1]
[1756842851727,13.59559401,205.48,205.43,0.1]
[1756842851728,13.59559401,205.48,205.44,12.02596779]
[1756842852041,12.02596779,205.5,205.44,12.02596779]
[1756842852042,13.59559401,205.46,205.44,12.71596779]
[1756842852416,39.2,205.45,205.44,12.71596779]
[1756842853134,39.2,205.45,205.44,0.69]
[1756842853436,39.2,205.45,205.44,16.89356903]
[1756842853843,39.2,205.45,205.44,12.02596779]
[1756842854027,39.2,205.45,205.43,0.1]
[1756842854640,14.57991715,205.44,205.43,0.1]
[1756842855421,12.02596779,205.46,205.43,0.1]
[1756842855656,13.59559401,205.46,205.43,4.96783819]
[1756842855936,39.16,205.45,205.43,4.96783819]
[1756842856139,13.59559401,205.44,205.43,0.1]
[1756842856736,0.28432314,205.48,205.43,17.68380598]
[1756842856919,13.59559401,205.46,205.43,17.68380598]
[1756842857439,13.59559401,205.46,205.43,4.96780509]
[1756842858633,13.59559401,205.46,205.43,0.1]
[1756842859639,13.59559401,205.44,205.43,0.1]
[1756842859836,52.73559401,205.44,205.43,0.1]
[1756842861241,65.74588494,205.44,205.43,0.1]
[1756842861429,65.88804651,205.44,205.43,0.1]
[1756842861915,53.86207872,205.44,205.43,0.1]
[1756842862114,65.88804651,205.44,205.43,0.1]
[1756842862313,52.97991715,205.44,205.43,0.1]
[1756842862739,52.69559401,205.44,205.43,0.1]
[1756842862939,13.59559401,205.44,205.43,0.1]
[1756842863140,52.69559401,205.44,205.43,0.1]
[1756842863517,52.69559401,205.44,205.43,4.96783819]
[1756842863738,13.59559401,205.44,205.43,5.65783819]
[1756842863932,12.72596779,205.49,205.43,17.68380598]
[1756842864134,52.69559401,205.48,205.43,16.99380598]
[1756842864338,0.14216157,205.47,205.43,17.68380598]
[1756842864643,13.59559401,205.45,205.43,5.65783819]
[1756842864944,39.1,205.44,205.43,5.65783819]
[1756842865322,12.86812936,205.49,205.43,17.68380598]
[1756842865635,36.36333535,205.66,205.48,12.02596779]
[1756842865636,0.7,205.57,205.48,12.02596779]
[1756842865836,51.18596779,205.56,205.5,12.02596779]
[1756842866038,26.74804651,205.55,205.49,12.02596779]
[1756842866356,26.3215618,205.55,205.49,12.02596779]
[1756842866513,13.59559401,205.57,205.52,12.02596779]
[1756842866719,27.41262243,205.59,205.53,0.69]
[1756842866720,39.14,205.56,205.53,0.69]
[1756842866934,39.14,205.55,205.52,12.02596779]
[1756842867242,39.14,205.55,205.53,12.02596779]
[1756842867430,39.14,205.55,205.53,12.71596779]
[1756842867749,13.59559401,205.58,205.54,5.55523304]
[1756842867920,13.59559401,205.56,205.54,4.86523304]
[1756842869538,0.34432314,205.59,205.55,12.71596779]
[1756842869735,13.59559401,205.57,205.55,16.89095646]
[1756842869938,13.59559401,205.57,205.41,20.0]
[1756842870139,25.6215618,205.55,205.47,0.69]
[1756842870326,0.06,205.59,205.54,12.02596779]
[1756842870528,0.06,205.59,205.58,12.02596779]
[1756842870738,13.59559401,205.58,205.51,0.69]
[1756842870921,13.59559401,205.56,205.52,12.02596779]
[1756842871252,14.29559401,205.56,205.51,12.02596779]
[1756842871540,14.29559401,205.56,205.51,12.71596779]
[1756842871745,14.29559401,205.56,205.51,4.86578818]
[1756842872043,14.29559401,205.56,205.51,16.89175597]
[1756842872748,39.16,205.55,205.53,12.02596779]
[1756842872947,39.16,205.55,205.54,12.02596779]
[1756842873545,39.16,205.55,205.52,0.69]
[1756842873743,39.16,205.55,205.53,12.02596779]
[1756842873949,39.16,205.55,205.54,4.86523304]
[1756842875042,0.06,205.59,205.54,5.55523304]
[1756842875245,0.06,205.59,205.55,12.02596779]
[1756842875246,39.14,205.58,205.55,12.02596779]
[1756842875543,13.59559401,205.57,205.53,12.02596779]
[1756842875751,13.59559401,205.57,205.53,0.69]
[1756842876066,13.59559401,205.57,205.54,12.02596779]
[1756842876225,13.59559401,205.57,205.53,5.55525766]
[1756842876226,13.59559401,205.57,205.53,12.02596779]
[1756842876426,13.59559401,205.57,205.53,12.71596779]
[1756842876947,13.59559401,205.57,205.53,0.69]
[1756842877141,13.59559401,205.57,205.53,12.71596779]
[1756842877343,13.59559401,205.57,205.53,17.58142984]
[1756842877544,13.59559401,205.57,205.54,12.71596779]
[1756842877741,13.59559401,205.57,205.55,12.02596779]
[1756842877942,39.14,205.58,205.56,16.89072747]
[1756842878145,39.14,205.58,205.56,4.86475968]
[1756842878344,39.14,205.58,205.56,16.89072747]
[1756842878551,39.14,205.58,205.56,4.86475968]
[1756842878942,0.06,205.59,205.57,12.71596779]
[1756842879132,39.12,205.58,205.57,0.69]
[1756842879460,39.12,205.58,205.56,4.86475968]
[1756842879759,39.12,205.58,205.53,12.85322854]
[1756842879760,14.29559401,205.57,205.54,4.86523304]
[1756842880056,13.59559401,205.57,205.51,5.58594326]
[1756842880268,0.06,205.59,205.55,12.02596779]
[1756842880451,39.14,205.58,205.57,12.02596779]
[1756842880629,39.14,205.58,205.52,0.69]
[1756842880831,39.14,205.58,205.55,12.02596779]
[1756842881130,39.14,205.58,205.57,12.02596779]
[1756842881330,39.14,205.58,205.55,12.02596779]
[1756842881537,39.14,205.58,205.55,12.72596779]
[1756842881839,14.30559401,205.57,205.51,0.03]
[1756842882031,26.3315618,205.57,205.51,12.05596779]
[1756842882840,0.28432314,205.56,205.51,12.05596779]
[1756842883156,0.28432314,205.56,205.51,0.03]
[1756842883157,13.59559401,205.54,205.51,0.03]
[1756842883348,14.30559401,205.54,205.51,0.03]
[1756842885444,39.12,205.55,205.52,0.7]
[1756842885755,39.12,205.55,205.53,12.72596779]
[1756842886141,52.71559401,205.55,205.54,4.86523304]
[1756842886729,0.06,205.59,205.54,16.89120083]
[1756842886933,0.06,205.59,205.56,12.02596779]
[1756842887154,39.1,205.58,205.56,12.02596779]
[1756842887559,39.1,205.58,205.57,12.02596779]
[1756842888350,39.1,205.58,205.57,16.89049082]
[1756842889159,39.12,205.58,205.57,17.59049082]
[1756842889956,39.12,205.58,205.57,16.89049082]
[1756842890465,39.06,205.58,205.57,17.59049082]
[1756842890964,0.06,205.59,205.57,17.59049082]
[1756842891174,0.06,205.59,205.58,0.7]
[1756842891341,0.06,205.61,205.58,38.72596779]
[1756842891542,0.06,205.61,205.6,12.02596779]
[1756842891742,0.06,205.61,205.6,26.0]
[1756842891964,0.06,205.61,205.6,38.72596779]
[1756842892246,0.06,205.61,205.6,17.58978101]
[1756842892854,0.06,205.61,205.6,16.88978101]
[1756842893547,0.06,205.61,205.6,12.82275615]
[1756842893749,0.06,205.61,205.6,13.52275615]
[1756842894364,0.06,205.61,205.6,4.86381322]
[1756842894553,0.06,205.61,205.6,8.65894293]
[1756842896374,0.06,205.61,205.6,13.52275615]
[1756842897875,0.06,205.64,205.6,25.68228922]
[1756842898058,0.06,205.66,205.65,7.95894293]
[1756842898582,0.06,205.66,205.65,8.65894293]
[1756842898773,0.06,205.66,205.65,0.7]
[1756842898962,0.06,205.66,205.65,8.65894293]
[1756842900267,8.72894293,205.66,205.6,1.94851061]
[1756842900472,13.59559401,205.61,205.56,7.98894293]
[1756842900652,0.71,205.63,205.56,8.68894293]
[1756842900953,13.59559401,205.62,205.59,7.95894293]
[1756842901154,0.06,205.66,205.6,8.65894293]
[1756842901373,39.18,205.65,205.62,7.95894293]
[1756842901574,0.06,205.66,205.63,7.95894293]
[1756842901748,0.06,205.66,205.65,7.95894293]
[1756842902280,0.06,205.7,205.65,34.65894293]
[1756842902493,0.06,205.7,205.69,7.95894293]